[Event "Early Titled Tuesday Blitz | February 8 2022"]
[White "Jain Kashish Manoj"]
[Black "Todorovic, Bojan"]
[WhiteFideId "35081098"]
[BlackFideId "917087"]
[WhiteElo "1681"]
[BlackElo "2266"]
[Result "0-1"]
[Round "10"]
[TimeControl "180+1"]
[Date "2022.02.08"]
[WhiteClock "0:00:15"]
[BlackClock "0:00:12"]

1. Nf3 {[%clk 0:03:00]}  Nf6 {[%clk 0:02:57]} 2. g3 {[%clk 0:03:01]}  g6 {[%clk 0:02:57]} 3. Bg2 {[%clk 0:03:02]}  Bg7 {[%clk 0:02:57]} 4. O-O {[%clk 0:03:03]}  O-O {[%clk 0:02:58]} 5. c4 {[%clk 0:03:04]}  d6 {[%clk 0:02:56]} 6. Nc3 {[%clk 0:03:04]}  c5 {[%clk 0:02:54]} 7. d4 {[%clk 0:03:04]}  Nc6 {[%clk 0:02:53]} 8. dxc5 {[%clk 0:03:03]}  dxc5 {[%clk 0:02:52]} 9. Be3 {[%clk 0:03:04]}  Be6 {[%clk 0:02:49]} 10. Qa4 {[%clk 0:02:53]}  Nd4 {[%clk 0:02:47]} 11. Rad1 {[%clk 0:01:52]}  Bd7 {[%clk 0:02:33]} 12. Qa3 {[%clk 0:01:52]}  Nc2 {[%clk 0:02:29]} 13. Qxc5 {[%clk 0:01:53]}  b6 {[%clk 0:02:21]} 14. Qg5 {[%clk 0:00:55]}  h6 {[%clk 0:02:13]} 15. Qe5 {[%clk 0:00:56]}  Ng4 {[%clk 0:02:09]} 16. Qe4 {[%clk 0:00:56]}  Ncxe3 {[%clk 0:01:59]} 17. fxe3 {[%clk 0:00:56]}  Nf6 {[%clk 0:01:41]} 18. Qd3 {[%clk 0:00:52]}  Qc8 {[%clk 0:01:38]} 19. Ne5 {[%clk 0:00:49]}  Bf5 {[%clk 0:01:33]} 20. Rxf5 {[%clk 0:00:43]}  Qxf5 {[%clk 0:01:32]} 21. Qxf5 {[%clk 0:00:42]}  gxf5 {[%clk 0:01:32]} 22. Bxa8 {[%clk 0:00:42]}  Rxa8 {[%clk 0:01:33]} 23. Nc6 {[%clk 0:00:22]}  Kf8 {[%clk 0:01:29]} 24. b3 {[%clk 0:00:09]}  e6 {[%clk 0:01:21]} 25. Rd8+ {[%clk 0:00:05]}  Rxd8 {[%clk 0:01:20]} 26. Nxd8 {[%clk 0:00:05]}  Ng4 {[%clk 0:01:12]} 27. Nb5 {[%clk 0:00:04]}  a5 {[%clk 0:01:06]} 28. e4 {[%clk 0:00:01]}  fxe4 {[%clk 0:01:04]} 29. Nc6 {[%clk 0:00:01]}  f5 {[%clk 0:00:57]} 30. c5 {[%clk 0:00:01]}  bxc5 {[%clk 0:00:56]} 31. Nxa5 {[%clk 0:00:01]}  Ke7 {[%clk 0:00:54]} 32. Nc4 {[%clk 0:00:02]}  Nf6 {[%clk 0:00:48]} 33. a4 {[%clk 0:00:03]}  Nd5 {[%clk 0:00:47]} 34. a5 {[%clk 0:00:04]}  Nb4 {[%clk 0:00:47]} 35. Kf2 {[%clk 0:00:02]}  Kd7 {[%clk 0:00:47]} 36. Nba3 {[%clk 0:00:01]}  Kc6 {[%clk 0:00:43]} 37. Ke3 {[%clk 0:00:02]}  h5 {[%clk 0:00:42]} 38. Kd2 {[%clk 0:00:02]}  Bh6+ {[%clk 0:00:40]} 39. Kd1 {[%clk 0:00:03]}  f4 {[%clk 0:00:38]} 40. Nc2 {[%clk 0:00:03]}  Nd5 {[%clk 0:00:32]} 41. gxf4 {[%clk 0:00:03]}  Bxf4 {[%clk 0:00:29]} 42. h3 {[%clk 0:00:03]}  Bg3 {[%clk 0:00:26]} 43. e3 {[%clk 0:00:03]}  Ne7 {[%clk 0:00:17]} 44. Nd2 {[%clk 0:00:03]}  Kd5 {[%clk 0:00:16]} 45. a6 {[%clk 0:00:02]}  Bb8 {[%clk 0:00:16]} 46. Na3 {[%clk 0:00:02]}  Nc6 {[%clk 0:00:15]} 47. Nb5 {[%clk 0:00:02]}  Ke5 {[%clk 0:00:14]} 48. Ke2 {[%clk 0:00:02]}  Kf5 {[%clk 0:00:13]} 49. Nc4 {[%clk 0:00:02]}  Kg5 {[%clk 0:00:13]} 50. Nb6 {[%clk 0:00:03]}  Kh4 {[%clk 0:00:13]} 51. Nc8 {[%clk 0:00:03]}  Kxh3 {[%clk 0:00:12]} 52. a7 {[%clk 0:00:04]}  Bxa7 {[%clk 0:00:12]} 53. Ncxa7 {[%clk 0:00:04]}  Nxa7 {[%clk 0:00:13]} 54. Nxa7 {[%clk 0:00:04]}  Kg2 {[%clk 0:00:13]} 55. Nc6 {[%clk 0:00:04]}  h4 {[%clk 0:00:13]} 56. Ne5 {[%clk 0:00:04]}  h3 {[%clk 0:00:14]} 57. Ng4 {[%clk 0:00:05]}  h2 {[%clk 0:00:14]} 58. Nxh2 {[%clk 0:00:05]}  Kxh2 {[%clk 0:00:15]} 59. Kd2 {[%clk 0:00:06]}  Kg2 {[%clk 0:00:14]} 60. Kc3 {[%clk 0:00:06]}  Kf3 {[%clk 0:00:14]} 61. Kc4 {[%clk 0:00:07]}  Kxe3 {[%clk 0:00:14]} 62. Kxc5 {[%clk 0:00:08]}  Kd3 {[%clk 0:00:13]} 63. b4 {[%clk 0:00:09]}  e3 {[%clk 0:00:13]} 64. b5 {[%clk 0:00:10]}  e2 {[%clk 0:00:14]} 65. b6 {[%clk 0:00:11]}  e1=Q {[%clk 0:00:14]} 66. b7 {[%clk 0:00:12]}  Qb1 {[%clk 0:00:13]} 67. Kc6 {[%clk 0:00:13]}  e5 {[%clk 0:00:12]} 68. Kc7 {[%clk 0:00:13]}  e4 {[%clk 0:00:13]} 69. b8=Q {[%clk 0:00:14]}  Qxb8+ {[%clk 0:00:12]} 70. Kxb8 {[%clk 0:00:15]} 0-1


[Site "https://www.chess.com"]

[Event "Early Titled Tuesday Blitz | February 8 2022"]
[White "Jaracz, Pawel"]
[Black "Hess, Robert"]
[WhiteFideId "1102222"]
[BlackFideId "2022036"]
[WhiteElo "2429"]
[BlackElo "2557"]
[Result "0-1"]
[Round "10"]
[TimeControl "180+1"]
[Date "2022.02.08"]
[WhiteClock "0:00:14"]
[BlackClock "0:00:03"]

1. e4 {[%clk 0:03:00]}  g6 {[%clk 0:03:00]} 2. d4 {[%clk 0:03:00]}  Bg7 {[%clk 0:03:01]} 3. Nc3 {[%clk 0:03:00]}  d6 {[%clk 0:03:01]} 4. Be3 {[%clk 0:02:59]}  a6 {[%clk 0:03:01]} 5. Qd2 {[%clk 0:02:55]}  Nd7 {[%clk 0:03:01]} 6. h4 {[%clk 0:02:51]}  h6 {[%clk 0:03:00]} 7. f4 {[%clk 0:02:46]}  h5 {[%clk 0:02:46]} 8. Nf3 {[%clk 0:02:39]}  Nh6 {[%clk 0:02:43]} 9. O-O-O {[%clk 0:02:34]}  b5 {[%clk 0:02:30]} 10. e5 {[%clk 0:02:34]}  Nb6 {[%clk 0:02:30]} 11. Ne4 {[%clk 0:02:23]}  Bf5 {[%clk 0:02:05]} 12. Bd3 {[%clk 0:02:16]}  Qd7 {[%clk 0:01:56]} 13. Nfg5 {[%clk 0:02:06]}  Ng4 {[%clk 0:01:37]} 14. Qe2 {[%clk 0:02:01]}  e6 {[%clk 0:01:09]} 15. Nf2 {[%clk 0:01:33]}  Qc6 {[%clk 0:00:45]} 16. Be4 {[%clk 0:01:25]}  Bxe4 {[%clk 0:00:38]} 17. Nfxe4 {[%clk 0:01:25]}  d5 {[%clk 0:00:26]} 18. Nc5 {[%clk 0:01:22]}  Bf8 {[%clk 0:00:23]} 19. Nd3 {[%clk 0:01:20]}  a5 {[%clk 0:00:19]} 20. Kb1 {[%clk 0:01:21]}  b4 {[%clk 0:00:14]} 21. Bc1 {[%clk 0:01:18]}  Be7 {[%clk 0:00:14]} 22. Rh3 {[%clk 0:01:18]}  Nc4 {[%clk 0:00:14]} 23. Nf2 {[%clk 0:01:17]}  Nxf2 {[%clk 0:00:08]} 24. Qxf2 {[%clk 0:01:18]}  a4 {[%clk 0:00:09]} 25. Qe2 {[%clk 0:01:15]}  Qa6 {[%clk 0:00:08]} 26. Qd3 {[%clk 0:00:56]}  c5 {[%clk 0:00:08]} 27. dxc5 {[%clk 0:00:55]}  Bxc5 {[%clk 0:00:09]} 28. b3 {[%clk 0:00:38]}  axb3 {[%clk 0:00:08]} 29. Qxb3 {[%clk 0:00:35]}  Ke7 {[%clk 0:00:08]} 30. f5 {[%clk 0:00:34]}  gxf5 {[%clk 0:00:07]} 31. Nf3 {[%clk 0:00:33]}  Rhg8 {[%clk 0:00:03]} 32. Bg5+ {[%clk 0:00:33]}  Ke8 {[%clk 0:00:04]} 33. Nd4 {[%clk 0:00:32]}  Na3+ {[%clk 0:00:03]} 34. Kc1 {[%clk 0:00:31]}  Bxd4 {[%clk 0:00:02]} 35. Rxd4 {[%clk 0:00:31]}  Qf1+ {[%clk 0:00:02]} 36. Rd1 {[%clk 0:00:31]}  Qxg2 {[%clk 0:00:02]} 37. Rhd3 {[%clk 0:00:24]}  Rxg5 {[%clk 0:00:02]} 38. hxg5 {[%clk 0:00:24]}  Qxg5+ {[%clk 0:00:03]} 39. R3d2 {[%clk 0:00:24]}  Nc4 {[%clk 0:00:03]} 40. Qxb4 {[%clk 0:00:24]}  Nxd2 {[%clk 0:00:03]} 41. Rxd2 {[%clk 0:00:22]}  Qg1+ {[%clk 0:00:03]} 42. Kb2 {[%clk 0:00:22]}  Qa7 {[%clk 0:00:02]} 43. Qb5+ {[%clk 0:00:17]}  Kf8 {[%clk 0:00:01]} 44. Qb4+ {[%clk 0:00:17]}  Ke8 {[%clk 0:00:01]} 45. Qb5+ {[%clk 0:00:18]}  Kd8 {[%clk 0:00:01]} 46. Rg2 {[%clk 0:00:16]}  Qxa2+ {[%clk 0:00:01]} 47. Kc1 {[%clk 0:00:15]}  Qa1+ {[%clk 0:00:01]} 48. Kd2 {[%clk 0:00:16]}  Qd4+ {[%clk 0:00:02]} 49. Ke2 {[%clk 0:00:15]}  Qxe5+ {[%clk 0:00:02]} 50. Kf2 {[%clk 0:00:14]}  Qf4+ {[%clk 0:00:02]} 51. Ke2 {[%clk 0:00:15]}  Qe4+ {[%clk 0:00:03]} 52. Kd2 {[%clk 0:00:14]}  Qxg2+ {[%clk 0:00:03]} 0-1


[Site "https://www.chess.com"]

[Event "Early Titled Tuesday Blitz | February 8 2022"]
[White "Jones, Gawain C B"]
[Black "Niemann, Hans Moke"]
[WhiteFideId "409561"]
[BlackFideId "2093596"]
[WhiteElo "2657"]
[BlackElo "2636"]
[Result "1-0"]
[Round "10"]
[TimeControl "180+1"]
[Date "2022.02.08"]
[WhiteClock "0:00:53"]
[BlackClock "0:00:45"]

1. Nf3 {[%clk 0:03:00]}  c5 {[%clk 0:02:56]} 2. g3 {[%clk 0:03:00]}  Nc6 {[%clk 0:02:51]} 3. Bg2 {[%clk 0:03:00]}  e5 {[%clk 0:02:51]} 4. d3 {[%clk 0:03:01]}  d5 {[%clk 0:02:50]} 5. O-O {[%clk 0:03:01]}  Nf6 {[%clk 0:02:51]} 6. e4 {[%clk 0:02:59]}  dxe4 {[%clk 0:02:52]} 7. dxe4 {[%clk 0:03:00]}  Qxd1 {[%clk 0:02:52]} 8. Rxd1 {[%clk 0:02:59]}  Bg4 {[%clk 0:02:53]} 9. Na3 {[%clk 0:02:56]}  Nd4 {[%clk 0:02:49]} 10. Rd3 {[%clk 0:02:53]}  Bxf3 {[%clk 0:02:41]} 11. Bxf3 {[%clk 0:02:53]}  Nxf3+ {[%clk 0:02:42]} 12. Rxf3 {[%clk 0:02:54]}  O-O-O {[%clk 0:02:42]} 13. Bg5 {[%clk 0:02:49]}  Be7 {[%clk 0:02:40]} 14. Nc4 {[%clk 0:02:44]}  Rd4 {[%clk 0:02:36]} 15. Ne3 {[%clk 0:02:17]}  Rxe4 {[%clk 0:02:16]} 16. Nf5 {[%clk 0:02:15]}  Bf8 {[%clk 0:02:13]} 17. Rd1 {[%clk 0:02:02]}  c4 {[%clk 0:02:03]} 18. Bxf6 {[%clk 0:01:44]}  gxf6 {[%clk 0:02:02]} 19. Kf1 {[%clk 0:01:39]}  a6 {[%clk 0:01:28]} 20. h3 {[%clk 0:01:30]}  Bb4 {[%clk 0:01:16]} 21. a3 {[%clk 0:01:28]}  Bc5 {[%clk 0:01:06]} 22. Rc3 {[%clk 0:01:24]}  b5 {[%clk 0:01:06]} 23. Rd5 {[%clk 0:01:10]}  Rd8 {[%clk 0:00:54]} 24. Rxc5+ {[%clk 0:01:09]}  Kb7 {[%clk 0:00:53]} 25. Re3 {[%clk 0:00:52]}  Rxe3 {[%clk 0:00:47]} 26. Nxe3 {[%clk 0:00:53]}  Kb6 {[%clk 0:00:45]} 27. Rd5 {[%clk 0:00:53]} 1-0


[Site "https://www.chess.com"]

[Event "Early Titled Tuesday Blitz | February 8 2022"]
[White "Karavaeva, Olga"]
[Black "Manukian, Artak"]
[WhiteFideId "4124111"]
[BlackFideId "13301373"]
[WhiteElo "2105"]
[BlackElo "2399"]
[Result "0-1"]
[Round "10"]
[TimeControl "180+1"]
[Date "2022.02.08"]
[WhiteClock "0:00:56"]
[BlackClock "0:00:17"]

1. c4 {[%clk 0:03:00]}  Nf6 {[%clk 0:02:59]} 2. Nc3 {[%clk 0:03:01]}  g6 {[%clk 0:02:59]} 3. g3 {[%clk 0:03:01]}  Bg7 {[%clk 0:02:59]} 4. Bg2 {[%clk 0:03:01]}  O-O {[%clk 0:03:00]} 5. Nf3 {[%clk 0:03:02]}  d6 {[%clk 0:03:00]} 6. O-O {[%clk 0:03:03]}  e5 {[%clk 0:03:00]} 7. d4 {[%clk 0:03:03]}  Nc6 {[%clk 0:02:58]} 8. d5 {[%clk 0:03:04]}  Ne7 {[%clk 0:02:59]} 9. h3 {[%clk 0:03:03]}  a5 {[%clk 0:02:58]} 10. b3 {[%clk 0:03:02]}  Nd7 {[%clk 0:02:56]} 11. a4 {[%clk 0:02:58]}  Nc5 {[%clk 0:02:56]} 12. Ba3 {[%clk 0:02:58]}  f5 {[%clk 0:02:55]} 13. Rb1 {[%clk 0:02:56]}  h6 {[%clk 0:02:44]} 14. Bxc5 {[%clk 0:02:55]}  dxc5 {[%clk 0:02:43]} 15. e4 {[%clk 0:02:56]}  f4 {[%clk 0:02:43]} 16. gxf4 {[%clk 0:02:52]}  Rxf4 {[%clk 0:02:39]} 17. Qd3 {[%clk 0:02:51]}  g5 {[%clk 0:02:32]} 18. Ne2 {[%clk 0:02:51]}  Rf7 {[%clk 0:02:20]} 19. Ng3 {[%clk 0:02:50]}  Ng6 {[%clk 0:02:17]} 20. Qe3 {[%clk 0:02:39]}  Nf4 {[%clk 0:02:15]} 21. Kh2 {[%clk 0:02:32]}  Ra6 {[%clk 0:01:53]} 22. Qxc5 {[%clk 0:02:27]}  g4 {[%clk 0:01:20]} 23. Ng1 {[%clk 0:02:11]}  gxh3 {[%clk 0:01:10]} 24. Bh1 {[%clk 0:02:09]}  Raf6 {[%clk 0:00:51]} 25. Rbd1 {[%clk 0:01:55]}  Bg4 {[%clk 0:00:34]} 26. Rd2 {[%clk 0:01:54]}  h5 {[%clk 0:00:30]} 27. Qxa5 {[%clk 0:01:48]}  h4 {[%clk 0:00:29]} 28. N3e2 {[%clk 0:01:46]}  Nxe2 {[%clk 0:00:27]} 29. Nxe2 {[%clk 0:01:31]}  Rxf2+ {[%clk 0:00:26]} 30. Rxf2 {[%clk 0:01:31]}  Rxf2+ {[%clk 0:00:27]} 31. Kg1 {[%clk 0:01:31]}  Rxe2 {[%clk 0:00:25]} 32. Rxe2 {[%clk 0:01:12]}  Bxe2 {[%clk 0:00:26]} 33. Qd2 {[%clk 0:01:11]}  Bh5 {[%clk 0:00:22]} 34. Kh2 {[%clk 0:01:09]}  Kh7 {[%clk 0:00:21]} 35. Kxh3 {[%clk 0:01:08]}  Bh6 {[%clk 0:00:20]} 36. Qf2 {[%clk 0:01:06]}  Qd7+ {[%clk 0:00:19]} 37. Kh2 {[%clk 0:01:05]}  Bf4+ {[%clk 0:00:18]} 38. Kg1 {[%clk 0:01:05]}  Qg4+ {[%clk 0:00:18]} 39. Qg2 {[%clk 0:01:03]}  Qd1+ {[%clk 0:00:17]} 40. Qf1 {[%clk 0:01:03]}  Be3+ {[%clk 0:00:16]} 41. Kg2 {[%clk 0:01:01]}  Qd2+ {[%clk 0:00:16]} 42. Kh3 {[%clk 0:01:00]}  Bf4 {[%clk 0:00:16]} 43. Bg2 {[%clk 0:00:57]}  Qe3+ {[%clk 0:00:16]} 44. Kxh4 {[%clk 0:00:56]}  Qg3+ {[%clk 0:00:16]} 45. Kxh5 {[%clk 0:00:56]}  Qg5# {[%clk 0:00:17]} 0-1


[Site "https://www.chess.com"]

[Event "Early Titled Tuesday Blitz | February 8 2022"]
[White "Khamzin, Olzhas"]
[Black "Vaishali, Rameshbabu"]
[WhiteFideId "13701690"]
[BlackFideId "5091756"]
[WhiteElo "2194"]
[BlackElo "2343"]
[Result "1-0"]
[Round "10"]
[TimeControl "180+1"]
[Date "2022.02.08"]
[WhiteClock "0:00:08"]
[BlackClock "0:00:02"]

1. d4 {[%clk 0:03:00]}  Nf6 {[%clk 0:02:59]} 2. Nc3 {[%clk 0:03:01]}  d5 {[%clk 0:02:59]} 3. Bg5 {[%clk 0:03:02]}  Nbd7 {[%clk 0:02:52]} 4. e3 {[%clk 0:03:02]}  h6 {[%clk 0:02:52]} 5. Bf4 {[%clk 0:03:01]}  a6 {[%clk 0:02:49]} 6. Qf3 {[%clk 0:03:02]}  e6 {[%clk 0:02:47]} 7. g4 {[%clk 0:03:02]}  c5 {[%clk 0:02:42]} 8. O-O-O {[%clk 0:03:01]}  b5 {[%clk 0:02:24]} 9. h4 {[%clk 0:02:31]}  Qa5 {[%clk 0:02:17]} 10. g5 {[%clk 0:02:29]}  b4 {[%clk 0:02:17]} 11. gxf6 {[%clk 0:02:22]}  bxc3 {[%clk 0:02:16]} 12. fxg7 {[%clk 0:02:04]}  Bxg7 {[%clk 0:02:08]} 13. Ne2 {[%clk 0:02:04]}  cxb2+ {[%clk 0:01:59]} 14. Kb1 {[%clk 0:02:05]}  Nb6 {[%clk 0:01:51]} 15. Bc7 {[%clk 0:01:39]}  Ra7 {[%clk 0:00:53]} 16. Bxb6 {[%clk 0:01:37]}  Qxb6 {[%clk 0:00:54]} 17. Rg1 {[%clk 0:01:38]}  Rg8 {[%clk 0:00:48]} 18. Rg3 {[%clk 0:00:52]}  Bd7 {[%clk 0:00:23]} 19. Qg2 {[%clk 0:00:47]}  Kf8 {[%clk 0:00:20]} 20. Nf4 {[%clk 0:00:29]}  Ba4 {[%clk 0:00:19]} 21. Bd3 {[%clk 0:00:24]}  cxd4 {[%clk 0:00:06]} 22. Nh5 {[%clk 0:00:19]}  dxe3 {[%clk 0:00:05]} 23. Rxg7 {[%clk 0:00:17]}  Rxg7 {[%clk 0:00:04]} 24. Qxg7+ {[%clk 0:00:17]}  Ke7 {[%clk 0:00:04]} 25. Qf6+ {[%clk 0:00:17]}  Ke8 {[%clk 0:00:03]} 26. Ng7+ {[%clk 0:00:16]}  Kf8 {[%clk 0:00:02]} 27. fxe3 {[%clk 0:00:15]}  Qxe3 {[%clk 0:00:02]} 28. Nxe6+ {[%clk 0:00:08]}  Qxe6 {[%clk 0:00:02]} 29. Qd8+ {[%clk 0:00:08]} 1-0


[Site "https://www.chess.com"]

[Event "Early Titled Tuesday Blitz | February 8 2022"]
[White "Kostina, Nadezhda"]
[Black "Varney, Zoe"]
[WhiteFideId "4195876"]
[BlackFideId "436135"]
[WhiteElo "2001"]
[BlackElo "1808"]
[Result "0-1"]
[Round "10"]
[TimeControl "180+1"]
[Date "2022.02.08"]
[WhiteClock "0:00:05"]
[BlackClock "0:00:03"]

1. e4 {[%clk 0:02:56]}  e5 {[%clk 0:02:57]} 2. Nf3 {[%clk 0:02:56]}  Nc6 {[%clk 0:02:56]} 3. Bc4 {[%clk 0:02:53]}  Nf6 {[%clk 0:02:56]} 4. O-O {[%clk 0:02:48]}  Nxe4 {[%clk 0:02:55]} 5. Re1 {[%clk 0:02:24]}  d5 {[%clk 0:02:54]} 6. Bb3 {[%clk 0:02:18]}  Be7 {[%clk 0:02:27]} 7. d3 {[%clk 0:02:14]}  Nc5 {[%clk 0:02:25]} 8. Nxe5 {[%clk 0:02:12]}  Nxe5 {[%clk 0:02:22]} 9. Rxe5 {[%clk 0:02:12]}  Nxb3 {[%clk 0:02:23]} 10. axb3 {[%clk 0:02:05]}  O-O {[%clk 0:02:23]} 11. Nc3 {[%clk 0:02:02]}  c6 {[%clk 0:02:21]} 12. Qh5 {[%clk 0:01:53]}  Bd6 {[%clk 0:01:59]} 13. Rg5 {[%clk 0:01:50]}  g6 {[%clk 0:01:34]} 14. Qh6 {[%clk 0:01:43]}  Re8 {[%clk 0:01:32]} 15. Be3 {[%clk 0:01:35]}  Bf8 {[%clk 0:01:31]} 16. Qh4 {[%clk 0:01:27]}  h6 {[%clk 0:01:12]} 17. Rg4 {[%clk 0:01:15]}  Bxg4 {[%clk 0:01:12]} 18. Qxg4 {[%clk 0:01:14]}  a6 {[%clk 0:01:12]} 19. h4 {[%clk 0:01:09]}  Bg7 {[%clk 0:01:11]} 20. Ne2 {[%clk 0:00:54]}  Bxb2 {[%clk 0:00:52]} 21. Rb1 {[%clk 0:00:52]}  Bg7 {[%clk 0:00:52]} 22. h5 {[%clk 0:00:51]}  Qf6 {[%clk 0:00:44]} 23. Ng3 {[%clk 0:00:42]}  d4 {[%clk 0:00:31]} 24. Bd2 {[%clk 0:00:41]}  Qe6 {[%clk 0:00:27]} 25. Qf3 {[%clk 0:00:38]}  Rad8 {[%clk 0:00:17]} 26. hxg6 {[%clk 0:00:36]}  fxg6 {[%clk 0:00:17]} 27. Ne4 {[%clk 0:00:34]}  Rf8 {[%clk 0:00:15]} 28. Qg3 {[%clk 0:00:33]}  Qf5 {[%clk 0:00:12]} 29. Qh4 {[%clk 0:00:28]}  Rde8 {[%clk 0:00:11]} 30. Bxh6 {[%clk 0:00:26]}  Bxh6 {[%clk 0:00:10]} 31. Qxh6 {[%clk 0:00:26]}  Rxe4 {[%clk 0:00:10]} 32. dxe4 {[%clk 0:00:26]}  Qxf2+ {[%clk 0:00:10]} 33. Kh1 {[%clk 0:00:25]}  Rf4 {[%clk 0:00:06]} 34. Qxg6+ {[%clk 0:00:21]}  Kf8 {[%clk 0:00:06]} 35. Qh6+ {[%clk 0:00:19]}  Ke7 {[%clk 0:00:03]} 36. Qg5+ {[%clk 0:00:17]}  Kd6 {[%clk 0:00:03]} 37. Qh6+ {[%clk 0:00:16]}  Rf6 {[%clk 0:00:02]} 38. e5+ {[%clk 0:00:13]}  Kxe5 {[%clk 0:00:02]} 39. Qh2+ {[%clk 0:00:11]}  Qf4 {[%clk 0:00:02]} 40. Re1+ {[%clk 0:00:09]}  Kd5 {[%clk 0:00:02]} 41. Qxf4 {[%clk 0:00:08]}  Rxf4 {[%clk 0:00:03]} 42. Kh2 {[%clk 0:00:08]}  Rf2 {[%clk 0:00:03]} 43. Kh3 {[%clk 0:00:05]}  Rxc2 {[%clk 0:00:03]} 44. g4 {[%clk 0:00:06]}  d3 {[%clk 0:00:03]} 45. g5 {[%clk 0:00:06]}  d2 {[%clk 0:00:04]} 46. Rg1 {[%clk 0:00:05]}  Rc1 {[%clk 0:00:03]} 0-1


[Site "https://www.chess.com"]

[Event "Early Titled Tuesday Blitz | February 8 2022"]
[White "Khoroshev, Nikita"]
[Black "Lopez Mulet, Inigo"]
[WhiteFideId "14200287"]
[BlackFideId "22235620"]
[WhiteElo "2354"]
[BlackElo "2315"]
[Result "0-1"]
[Round "10"]
[TimeControl "180+1"]
[Date "2022.02.08"]
[WhiteClock "0:00:02"]
[BlackClock "0:00:18"]

1. e4 {[%clk 0:02:54]}  g6 {[%clk 0:02:58]} 2. h4 {[%clk 0:02:54]}  Bg7 {[%clk 0:02:59]} 3. h5 {[%clk 0:02:55]}  c5 {[%clk 0:02:59]} 4. Nc3 {[%clk 0:02:49]}  Nc6 {[%clk 0:02:59]} 5. d3 {[%clk 0:02:47]}  d6 {[%clk 0:02:59]} 6. h6 {[%clk 0:02:45]}  Bf8 {[%clk 0:02:59]} 7. Be2 {[%clk 0:02:43]}  Nd4 {[%clk 0:02:58]} 8. Be3 {[%clk 0:02:38]}  e5 {[%clk 0:02:51]} 9. Nd5 {[%clk 0:02:33]}  Be6 {[%clk 0:02:51]} 10. c3 {[%clk 0:02:31]}  Nxe2 {[%clk 0:02:51]} 11. Nxe2 {[%clk 0:02:29]}  f5 {[%clk 0:02:46]} 12. d4 {[%clk 0:02:13]}  f4 {[%clk 0:02:15]} 13. Nexf4 {[%clk 0:02:06]}  exf4 {[%clk 0:02:13]} 14. Nxf4 {[%clk 0:02:07]}  Bf7 {[%clk 0:02:11]} 15. dxc5 {[%clk 0:01:26]}  dxc5 {[%clk 0:02:10]} 16. Qe2 {[%clk 0:01:21]}  Bxh6 {[%clk 0:02:05]} 17. Rd1 {[%clk 0:01:16]}  Qf6 {[%clk 0:01:53]} 18. e5 {[%clk 0:00:59]}  Qf5 {[%clk 0:01:21]} 19. Qb5+ {[%clk 0:00:37]}  Kf8 {[%clk 0:01:15]} 20. Qxc5+ {[%clk 0:00:28]}  Kg7 {[%clk 0:01:11]} 21. Qd4 {[%clk 0:00:27]}  Bxf4 {[%clk 0:01:08]} 22. Bxf4 {[%clk 0:00:27]}  Be6 {[%clk 0:01:07]} 23. Be3 {[%clk 0:00:21]}  Ne7 {[%clk 0:01:05]} 24. Qh4 {[%clk 0:00:17]}  Nd5 {[%clk 0:00:55]} 25. Rxd5 {[%clk 0:00:16]}  Bxd5 {[%clk 0:00:55]} 26. Qe7+ {[%clk 0:00:16]}  Qf7 {[%clk 0:00:51]} 27. Bh6+ {[%clk 0:00:15]}  Kg8 {[%clk 0:00:51]} 28. Qd6 {[%clk 0:00:15]}  Re8 {[%clk 0:00:50]} 29. Rh4 {[%clk 0:00:08]}  Qe6 {[%clk 0:00:46]} 30. Qxe6+ {[%clk 0:00:05]}  Rxe6 {[%clk 0:00:43]} 31. Rd4 {[%clk 0:00:04]}  Rxe5+ {[%clk 0:00:42]} 32. Kd2 {[%clk 0:00:05]}  Kf7 {[%clk 0:00:43]} 33. f4 {[%clk 0:00:05]}  Rh5 {[%clk 0:00:37]} 34. Bg5 {[%clk 0:00:05]}  Bc6 {[%clk 0:00:37]} 35. c4 {[%clk 0:00:04]}  Re8 {[%clk 0:00:37]} 36. b4 {[%clk 0:00:03]}  Rh2 {[%clk 0:00:37]} 37. b5 {[%clk 0:00:03]}  Rxg2+ {[%clk 0:00:37]} 38. Kc3 {[%clk 0:00:04]}  Be4 {[%clk 0:00:31]} 39. Rd7+ {[%clk 0:00:04]}  Ke6 {[%clk 0:00:32]} 40. Rxh7 {[%clk 0:00:03]}  Kf5 {[%clk 0:00:29]} 41. Rf7+ {[%clk 0:00:03]}  Kg4 {[%clk 0:00:29]} 42. a4 {[%clk 0:00:03]}  Rc8 {[%clk 0:00:28]} 43. Kb4 {[%clk 0:00:02]}  Rc2 {[%clk 0:00:26]} 44. Re7 {[%clk 0:00:02]}  R2xc4+ {[%clk 0:00:25]} 45. Kb3 {[%clk 0:00:03]}  Bd5 {[%clk 0:00:24]} 46. Re5 {[%clk 0:00:03]}  Rd4+ {[%clk 0:00:23]} 47. Kb2 {[%clk 0:00:03]}  Rb4+ {[%clk 0:00:22]} 48. Ka3 {[%clk 0:00:04]}  Rb3+ {[%clk 0:00:22]} 49. Ka2 {[%clk 0:00:05]}  Rc2+ {[%clk 0:00:20]} 50. Ka1 {[%clk 0:00:05]}  Rd3 {[%clk 0:00:17]} 51. Re1 {[%clk 0:00:05]}  Ra2+ {[%clk 0:00:14]} 52. Kb1 {[%clk 0:00:05]}  Rxa4 {[%clk 0:00:15]} 53. Bf6 {[%clk 0:00:05]}  Rb4+ {[%clk 0:00:15]} 54. Kc2 {[%clk 0:00:05]}  Rg3 {[%clk 0:00:15]} 55. Be5 {[%clk 0:00:05]}  Rxb5 {[%clk 0:00:15]} 56. f5 {[%clk 0:00:03]}  gxf5 {[%clk 0:00:15]} 57. Kd2 {[%clk 0:00:03]}  Rg2+ {[%clk 0:00:15]} 58. Kc3 {[%clk 0:00:04]}  Be4 {[%clk 0:00:15]} 59. Bd6 {[%clk 0:00:03]}  Rd5 {[%clk 0:00:16]} 60. Bb8 {[%clk 0:00:02]}  Rd3+ {[%clk 0:00:17]} 61. Kc4 {[%clk 0:00:02]}  Rc2+ {[%clk 0:00:17]} 62. Kb4 {[%clk 0:00:03]}  Bd5 {[%clk 0:00:17]} 63. Rg1+ {[%clk 0:00:02]}  Kf3 {[%clk 0:00:17]} 64. Rf1+ {[%clk 0:00:02]}  Ke4 {[%clk 0:00:17]} 65. Rf4+ {[%clk 0:00:03]}  Ke3 {[%clk 0:00:18]} 66. Rxf5 {[%clk 0:00:03]}  Rb3+ {[%clk 0:00:18]} 67. Ka4 {[%clk 0:00:02]}  Ra2# {[%clk 0:00:18]} 0-1


[Site "https://www.chess.com"]

[Event "Early Titled Tuesday Blitz | February 8 2022"]
[White "Komiagina, Maria"]
[Black "Dilmukhametov, Artur"]
[WhiteFideId "4153987"]
[BlackFideId "24179922"]
[WhiteElo "1945"]
[BlackElo "2266"]
[Result "1-0"]
[Round "10"]
[TimeControl "180+1"]
[Date "2022.02.08"]
[WhiteClock "0:00:41"]
[BlackClock "0:00:01"]

1. e4 {[%clk 0:03:00]}  c5 {[%clk 0:02:59]} 2. Nf3 {[%clk 0:03:00]}  Nc6 {[%clk 0:03:00]} 3. Bb5 {[%clk 0:02:59]}  g6 {[%clk 0:03:00]} 4. Bxc6 {[%clk 0:02:58]}  bxc6 {[%clk 0:03:01]} 5. O-O {[%clk 0:02:57]}  Bg7 {[%clk 0:03:01]} 6. Re1 {[%clk 0:02:57]}  f6 {[%clk 0:03:01]} 7. e5 {[%clk 0:02:52]}  fxe5 {[%clk 0:03:00]} 8. Nxe5 {[%clk 0:02:52]}  Nf6 {[%clk 0:03:00]} 9. Nc3 {[%clk 0:02:47]}  O-O {[%clk 0:02:59]} 10. d3 {[%clk 0:02:47]}  Qc7 {[%clk 0:02:59]} 11. h3 {[%clk 0:02:35]}  d6 {[%clk 0:02:58]} 12. Nf3 {[%clk 0:02:34]}  e5 {[%clk 0:02:58]} 13. Bg5 {[%clk 0:02:30]}  Nd5 {[%clk 0:02:57]} 14. Ne4 {[%clk 0:02:16]}  Bd7 {[%clk 0:02:48]} 15. Nh2 {[%clk 0:02:07]}  Rf7 {[%clk 0:02:43]} 16. Qd2 {[%clk 0:02:05]}  Raf8 {[%clk 0:02:40]} 17. Bh6 {[%clk 0:02:01]}  Nf4 {[%clk 0:02:37]} 18. Bxg7 {[%clk 0:01:53]}  Kxg7 {[%clk 0:02:38]} 19. f3 {[%clk 0:01:48]}  Bf5 {[%clk 0:02:27]} 20. a3 {[%clk 0:01:45]}  Qe7 {[%clk 0:02:22]} 21. Kh1 {[%clk 0:01:24]}  h6 {[%clk 0:01:17]} 22. b4 {[%clk 0:01:21]}  cxb4 {[%clk 0:01:17]} 23. axb4 {[%clk 0:01:21]}  Qe6 {[%clk 0:01:17]} 24. Ra6 {[%clk 0:01:08]}  Bxe4 {[%clk 0:00:41]} 25. dxe4 {[%clk 0:01:06]}  Qf6 {[%clk 0:00:14]} 26. Rxc6 {[%clk 0:01:01]}  Qh4 {[%clk 0:00:12]} 27. Rxd6 {[%clk 0:00:55]}  Qg3 {[%clk 0:00:10]} 28. c4 {[%clk 0:00:45]}  Nxg2 {[%clk 0:00:02]} 29. Rg1 {[%clk 0:00:44]}  Qxh3 {[%clk 0:00:02]} 30. Qxg2 {[%clk 0:00:43]}  Qh5 {[%clk 0:00:01]} 31. Qxg6+ {[%clk 0:00:41]} 1-0


[Site "https://www.chess.com"]